Cogmind - Beta 16 @@@ ROGUE MODE // 2026.01.19 @ 21:31:31 Player: BottomOfTheSwamp Result: Destroyed by Y-45 Defender with Beam Rifle Performance ------------- Evolutions (0) 0 Regions Visited (3) 600 Robots Destroyed (13) 65 Value Destroyed (254) 254 Prototype IDs (0) 0 Alien Tech Used (0) 0 Bonus (0) 0 TOTAL SCORE: 919 Bonus ------- None Cogmind --------- Core Integrity 0/250 Matter 215/300 Energy 100/100 System Corruption 0% Temperature Cool (9) Movement Treading (160) Location -9/Recycling Parts ------- > --- POWER (1) -------- (None) > --- PROPULSION (2) --- Spiked Treads > --- UTILITY (2) ------ Small Storage Unit Makeshift Light Armor Plating > --- WEAPON (2) ------- Medium Laser Dirty Datajack > --- INVENTORY (8) ---- Subdweller Power Source Subdweller Optics ECM Suite EM Pulse Gun Subdweller Beam Cannon Subdweller Machine Gun Battle Cannon Grenade Launcher Peak State ------------ > --- POWER ------------ Ion Engine > --- PROPULSION ------- Spiked Treads > --- UTILITY ---------- Small Storage Unit Makeshift Light Armor Plating > --- WEAPON ----------- Medium Laser Dirty Datajack > --- INVENTORY -------- Subdweller Power Source Subdweller Optics ECM Suite EM Pulse Gun Subdweller Beam Cannon Subdweller Machine Gun Battle Cannon Grenade Launcher [Rating: 16] Favorites ----------- Power Ion Engine Engine Ion Engine Propulsion Spiked Treads Treads Spiked Treads Leg Aluminum Leg Utility Small Storage Unit Device Subdweller Optics Storage Small Storage Unit Protection Makeshift Light Armor Plating Weapon Medium Laser Energy Gun Medium Laser Energy Cannon Subdweller Beam Cannon Ballistic Cannon Battle Cannon Launcher Grenade Launcher Special Melee Weapon Dirty Datajack Build | -11 -10 -10 -9 ------- Run | Yrd Mat Sub Rec Slots Evolved . | . . . . Power . | . . . . Propulsion . | . . . . Utility . | . . . . Weapon . | . . . . Parts Attached 19 | 7 6 5 1 Power 2 | 1 1 . . Engine 2 | 1 1 . . Core . | . . . . Reactor . | . . . . Propulsion 3 | 2 . 1 . Treads 1 | . . 1 . Leg 2 | 2 . . . Wheel . | . . . . Hover . | . . . . Flight . | . . . . Utility 3 | 1 . 2 . Device 1 | . . 1 . Storage 1 | 1 . . . Processor . | . . . . Hackware . | . . . . Protection 1 | . . 1 . Artifact . | . . . . Weapon 11 | 3 5 2 1 Energy Gun 7 | 3 4 . . Energy Cannon 1 | . . 1 . Ballistic Gun . | . . . . Ballistic Cannon 1 | . . 1 . Launcher 1 | . 1 . . Special Weapon . | . . . . Impact Weapon . | . . . . Slashing Weapon . | . . . . Piercing Weapon . | . . . . Special Melee Weapon 1 | . . . 1 Unidentified Prototypes . | . . . . Parts Lost 7 | . 4 2 1 Power 2 | . 1 . 1 Propulsion 2 | . 2 . . Utility . | . . . . Weapon 3 | . 1 2 . Highest Loss Streak 4 | . 4 1 1 To Critical Strikes . | . . . . Average Backups 6 | 2 3 7 8 Power . | . . . 1 Propulsion . | . . . . Utility 1 | . . 1 2 Weapon 4 | 1 2 4 4 Tool/Special . | . . . . Unused Backups 4 | . . 1 3 Power 1 | . . . 1 Propulsion . | . . . . Utility 1 | . . . 1 Weapon 2 | . . 1 1 Tool/Special . | . . . . Average Slot Usage (%) 66 | . 65 56 84 Engine 13 | . 13 14 13 Treads 6 | . . 4 14 Leg 2 | . 9 . . Storage 14 | . 14 14 14 Protection 6 | . . 4 14 Energy Gun 17 | . 27 14 14 Energy Cannon 5 | . . 4 11 Peak Build Rating 16 | 6 6 12 16 Average Rating 7 | 3 4 6 12 On Entrance 5 | . 6 4 11 Avg Prop Armor Cover (%) . | . . . . Naked Turns . | . . . . Heaviest Build 24 | 10 14 24 24 Greatest Support 20 | 20 20 20 20 Greatest Overweight (x) 6 | . 4 6 1 Average Overweight (x) 1 | . 1 2 . Largest Inventory Capacity 8 | 8 8 8 8 Average Capacity 7 | 6 8 8 8 Most Carried 8 | 5 5 8 8 Average Carried 6 | 2 3 7 8 Final Capacity 8 | 8 8 8 8 Final Carried 8 | 2 4 8 8 Class Distribution -------------------- 100% | Mutant Dominant Class ---------------- Mutant | -10/Materials Mutant | -10/Subcaves Mutant | -9/Recycling Resources | -11 -10 -10 -9 ----------- Run | Yrd Mat Sub Rec Matter Collected 395 | 238 112 45 . Remotely . | . . . . Salvage Created 250 | . 85 165 . Parts 30 | . 9 21 . Haulers Intercepted . | . . . . Recyclers Shooed . | . . . . Parts Field Recycled . | . . . . Retrieved Matter . | . . . . Parts Self-Destructed 7 | . . 7 . Prevented . | . . . . Parts Restored . | . . . . Kills | -11 -10 -10 -9 ------- Run | Yrd Mat Sub Rec Combat Hostiles Destroyed 13 | . 6 7 . Guns 5 | . 3 2 . Cannons 1 | . . 1 . AOE 7 | . 3 4 . Classes Destroyed 3 | . 2 1 . Swarmer 9 | . 5 4 . Grunt 1 | . 1 . . Subdweller 3 | . . 3 . Best Kill Streak 6 | . 6 4 . Combat Bots Only 6 | . 6 4 . Max Kills in Single Turn 3 | . 2 3 . Gunslinging . | . . . . Exploded 3 | . 2 3 . Melee . | . . . . Uniques/NPCs Destroyed . | . . . . Combat | -11 -10 -10 -9 -------- Run | Yrd Mat Sub Rec Hostile Shots Fired 120 | . 55 60 5 Missed 35 | . 10 24 1 Hits 85 | . 45 36 4 Projectile 85 | . 45 36 4 Critical Strikes 2 | . 1 1 . Damage Taken 1035 | . 429 549 57 Core 259 | . 53 192 14 Absorbed by Shields . | . . . . Core Remaining (%) 100 | 100 . . . Volleys Fired 31 | . 14 17 . Largest 2 | . 2 2 . Hottest 130 | . 100 130 . Shots Fired 50 | . 26 24 . Gun 40 | . 24 16 . Cannon 4 | . . 4 . Launcher 6 | . 2 4 . Special . | . . . . Kinetic 2 | . . 2 . Thermal 42 | . 24 18 . Explosive 6 | . 2 4 . Electromagnetic . | . . . . Robot Hit Streak 11 | . 4 11 . Robot Miss Streak 7 | . 7 1 . Penetration Max . | . . . . Secondary Targets 1 | . 1 . . Max Gunslinging Chain 1 | . 1 . . Shots Hit Robots 37 | . 11 16 10 Core Hits 22 | . 9 8 5 Critical Kills . | . . . . Critical Parts Destroyed . | . . . . Critical Strikes 3 | . 2 1 . Burn 3 | . 2 1 . Melee Attacks 10 | . . . 10 Impact . | . . . . Slashing . | . . . . Piercing 10 | . . . 10 Sneak Attacks 4 | . . . 4 Combat Hostiles . | . . . . Follow-up Attacks . | . . . . Damage Inflicted 778 | . 308 433 37 Guns 290 | . 142 148 . Cannons 44 | . . 44 . Explosions 407 | . 166 241 . Melee 37 | . . . 37 Ramming . | . . . . Kinetic 44 | . . 44 . Thermal 290 | . 142 148 . Explosive 407 | . 166 241 . Electromagnetic . | . . . . Impact . | . . . . Slashing . | . . . . Piercing 37 | . . . 37 Highest Corruption . | . . . . Average Corruption . | . . . . Corruption Purged . | . . . . Corruption Blocked . | . . . . Overload Shots . | . . . . Overflow Damage 18 | . 2 16 . Projectiles . | . . . . Explosions 18 | . 2 16 . Melee . | . . . . Knockbacks 1 | . . 1 . Impact . | . . . . Kinetic 1 | . . 1 . Secondary . | . . . . Self-Inflicted Damage 67 | . 58 9 . Shots 3 | . 2 1 . Rammed . | . . . . Targets Rammed . | . . . . Kicked . | . . . . Crushed . | . . . . Highest Temperature 352 | . 352 48 24 Average Temperature 152 | . 186 26 10 Received Heat Transfer 198 | . 18 153 27 Effects 1 | . 1 . . Shutdowns 1 | . 1 . . Siege Activations . | . . . . Martial Activations . | . . . . Shielding Activations . | . . . . Robots Disrupted . | . . . . Combat Hostiles . | . . . . Robots Corrupted . | . . . . Combat Hostiles . | . . . . Parts Fried . | . . . . Impact Corruptions . | . . . . Robots Melted . | . . . . Combat Hostiles . | . . . . Parts Melted 2 | . 1 1 . Heat Transferred 1073 | . 555 518 . Parts Sabotaged . | . . . . Parts Stolen . | . . . . Parts Stripped . | . . . . Power Chain Reactions . | . . . . Alert | -11 -10 -10 -9 ------- Run | Yrd Mat Sub Rec Maximum Alert Level . | . . . . Low Security (%) 100 | 100 100 . 100 Level 1 . | . . . . Level 2 . | . . . . Level 3 . | . . . . Level 4 . | . . . . Level 5 . | . . . . High Security . | . . . . Max Security . | . . . . Peak Influence 115 | . 115 . 45 Initial 45 | . . . 45 Average 12 | . 25 . 3 Influence Increases 310 | . 193 95 22 Destroy 0b10 Robot/C 200 | . 120 80 . Destroy Leader 30 | . 30 . . Successful Hack 40 | . 18 . 22 Disable Machine 15 | . 15 . . Destroy Structure 10 | . 10 . . Lose Combat Pursuer 15 | . . 15 . Influence Decreases 310 | . 193 . 117 Entered New Map 50 | . . . 50 Time Decay 210 | . 143 . 67 Lost Part 40 | . 40 . . Lost Ally 10 | . 10 . . Squads Dispatched 1 | . 1 . . Investigation . | . . . . Extermination . | . . . . Reinforcement 1 | . 1 . . Assault . | . . . . Garrison . | . . . . Intercept . | . . . . Searches Triggered . | . . . . Construction Impeded . | . . . . Haulers Reinforced . | . . . . Active Scanning Responses . | . . . . Cargo Convoy Interrupts . | . . . . Stealth | -11 -10 -10 -9 --------- Run | Yrd Mat Sub Rec Distress Signals 1 | . 1 . . Communications Jammed . | . . . . Distress Signals . | . . . . Times Spotted 20 | . 8 10 2 Peak Tracking Total 6 | . 5 6 2 Tactical Retreats 1 | . . 1 . Traps | -11 -10 -10 -9 ------- Run | Yrd Mat Sub Rec Traps Triggered . | . . . . Indirectly . | . . . . Trap Hack Attempts . | . . . . Triggered . | . . . . Disarmed . | . . . . Reprogrammed . | . . . . Reused . | . . . . Traps Extracted . | . . . . Installed . | . . . . Triggered . | . . . . Machines | -11 -10 -10 -9 ---------- Run | Yrd Mat Sub Rec Machines Disabled 4 | . 1 3 . Max in Single Turn 2 | . 1 2 . Machines Repaired . | . . . . Machines Dismantled . | . . . . Machines Sabotaged . | . . . . Overloaded Fab Kills . | . . . . Hacking | -11 -10 -10 -9 --------- Run | Yrd Mat Sub Rec Machines Accessed 6 | . 2 . 4 Terminals 6 | . 2 . 4 Fabricators . | . . . . Repair Stations . | . . . . Recycling Units . | . . . . Scanalyzers . | . . . . Garrison Access . | . . . . Total Hacks 18 | . 9 . 9 Successful 8 | . 3 . 5 Failed 10 | . 6 . 4 Catastrophic . | . . . . Database Lockouts . | . . . . Manual 19 | . 10 . 9 Terminals 18 | . 9 . 9 Fabricators . | . . . . Repair Stations . | . . . . Recycling Units . | . . . . Scanalyzers . | . . . . Garrison Access . | . . . . Terminal Hacks 2 | . 1 . 1 Terminal Index 1 | . 1 . . Locate Traps 1 | . . . 1 Fabricator Hacks . | . . . . Repair Station Hacks . | . . . . Recycling Unit Hacks . | . . . . Scanalyzer . | . . . . Garrison Access Hacks . | . . . . Unauthorized Hacks 6 | . 2 . 4 Terminals 6 | . 2 . 4 Assimilate 6 | . 2 . 4 Fabricators . | . . . . Repair Stations . | . . . . Recycling Units . | . . . . Scanalyzers . | . . . . Garrison Access . | . . . . Data Cores Recovered . | . . . . Used . | . . . . Hacking Detections 5 | . 2 . 3 Full Trace Events . | . . . . Feedback Events . | . . . . Feedback Blocked . | . . . . Robot Schematics Acquired . | . . . . Robots Built . | . . . . Authchips . | . . . . Time . | . . . . Total Robot Build Rating . | . . . . Part Schematics Acquired . | . . . . Parts Built . | . . . . Authchips . | . . . . Time . | . . . . Total Part Build Rating . | . . . . Part Studies Acquired . | . . . . Parts Repaired . | . . . . Time . | . . . . Parts Recycled . | . . . . Recycled Matter . | . . . . Retrieved Matter . | . . . . Retrieved Components . | . . . . Parts Scanalyzed . | . . . . Part Schematics Acquired . | . . . . Parts Damaged . | . . . . Bothacking | -11 -10 -10 -9 ------------ Run | Yrd Mat Sub Rec Used RIF Installer . | . . . . Robots Hacked . | . . . . Non-combat . | . . . . Combat . | . . . . Robot Hacks Applied . | . . . . Relay Couplers Released . | . . . . Fabnet Peak Effective % . | . . . . Robots Rewired . | . . . . Allies Hacked . | . . . . Hacks Repelled . | . . . . Allies | -11 -10 -10 -9 -------- Run | Yrd Mat Sub Rec Total Allies 1 | . 1 . . Largest Group 1 | . 1 . . Highest-Rated Group 10 | . 10 . . Highest-Rated Ally 10 | . 10 . . Total Orders 1 | . 1 . . ROAM 1 | . 1 . . Ally Attacks . | . . . . Total Damage . | . . . . Kills . | . . . . Allies Corrupted . | . . . . Allies Melted . | . . . . Intel | -11 -10 -10 -9 ------- Run | Yrd Mat Sub Rec Active Infowar (turns) 1 | . . 1 . Optics 1 | . . 1 . Robot Analysis Total . | . . . . Derelict Logs Recovered 3 | . . 3 . Drone Launches . | . . . . Drone Recoveries . | . . . . Exploration | -11 -10 -10 -9 ------------- Run | Yrd Mat Sub Rec Turns Passed 2803 | 58 599 1319 827 Spaces Moved 1214 | 40 242 580 352 Core 562 | 17 121 424 . Treads 508 | . . 156 352 Legs 144 | 23 121 . . Wheels . | . . . . Hover . | . . . . Flight . | . . . . Fastest Speed 50 | 50 120 160 160 Average Speed 210 | 90 184 217 231 Slowest Speed 350 | 120 250 350 260 Overloaded Moves . | . . . . Propulsion Burnouts . | . . . . Robots Hopped . | . . . . Potential Cave-ins 1 | . . 1 . Cave-ins Triggered . | . . . . Exploration Rate (%) 29 | 4 35 38 40 Regions Visited 3 Branch Regions 2 Pre-discovered Areas 1 | . . 1 . Known Exits Taken 1 | . . 1 . Unknown Exits Taken 2 | 1 1 . . Scrap Searched 3 | . . 3 . Spaces Dug 16 | . 5 11 . Terrain Destroyed 29 | . 10 19 . Melee . | . . . . Projectile . | . . . . AOE 29 | . 10 19 . Terrain Rammed . | . . . . Walls Destroyed . | . . . . Machines Disabled . | . . . . Actions | -11 -10 -10 -9 --------- Run | Yrd Mat Sub Rec Total 1413 | 60 370 615 368 Wait 108 | 9 95 . 4 Move 1211 | 39 241 579 352 Hop . | . . . . Pick Up 22 | 5 8 9 . Fast Attach 4 | 3 . 1 . Attach 14 | 3 6 5 . Detach 1 | . . 1 . Swap 6 | 1 2 1 2 Drop 6 | . 4 2 . Fire 31 | . 14 17 . Melee 10 | . . . 10 Ram . | . . . . Kick . | . . . . Crush . | . . . . Escape Stasis . | . . . . Rewire . | . . . . Trap . | . . . . Miscellaneous . | . . . . Route ------- -11/Scrapyard -10/Materials (discovered 2 exits: [*Mat] / [*Sub]) -10/Subcaves -9/Recycling History --------- Turn | Location | Event 15 | -11/Scrapyard | Discovered new exit (range 16) 59 | -11/Scrapyard | Entered Materials 294 | -10/Materials | Lost 4 parts (1p2n1w) 309 | -10/Materials | Build established: Mutant 325 | -10/Materials | Discovered new exit (range 14) 637 | -10/Materials | Discovered new exit (range 5) 658 | -10/Materials | Entered Subcaves 663 | -10/Subcaves | Identified exit to Recycling 690 | -10/Subcaves | Core integrity fell below 50% 782 | -10/Subcaves | Learned Materials garrison access intel 830 | -10/Subcaves | Learned location of Storage (-9) 1499 | -10/Subcaves | Disturbed a concealed Subdweller 1501 | -10/Subcaves | Core integrity fell below 20% 1606 | -10/Subcaves | Shifting Twisted Machinery released Sub. Power Source 1977 | -10/Subcaves | Entered Recycling 2804 | -9/Recycling | Destroyed by Y-45 Defender with Beam Rifle Last Messages --------------- 02645_ Splicing R-06 Scavenger... 02645_ R-06 Scavenger system unaffected. 02646_ Splicing R-06 Scavenger... 02646_ R-06 Scavenger system unaffected. 02678_ Sneak attack on R-06 Scavenger. 02678_ Splicing R-06 Scavenger... 02678_ R-06 Scavenger system unaffected. 02679_ Splicing R-06 Scavenger... 02679_ R-06 Scavenger system unaffected. 02786_ Sneak attack on Y-45 Defender. 02786_ Splicing Y-45 Defender... 02786_ Y-45 Defender system inaccessible. 02787_ Y-45 Defender springs to life. 02787_ Splicing Y-45 Defender... Initiating full reboot, ETC: 23. [Achievement: Factory Defaults] 02787_ Sneak attack on Y-45 Defender. 02787_ Splicing Y-45 Defender... 02787_ Y-45 Defender system inaccessible. 02790_ Ion Engine destroyed. Map ----- +----------------------------------------------------+ | ?????????????????????????????????????????????????? | | ?????????????????????????????????????????????????? | | ?????????????????????????????????????????????????? | | ?????????????????????????????????????????????????? | | ?????????????????????????????????????????????????? | | ?????????????????????????????????????????????????? | | ?????????????????????????????????????????????????? | | ?????????????????????????????????????????????????? | | ?????????????????????????????????????????????????? | | ?????????????????????????????????????????????????? | | ?????????????????????????????????????????????????? | | ?????????????????????????????????????????????????? | | ?????????????????????????????????????????????????? | | ?????????????????????????????????????????????????? | | ?????????????????????????????????????????????????? | | ?????????????????????????????????????????????????? | | ?????????????????????????????????????????????????? | | ?????????????????????????????????????????????????? | | ###########??????????????????????????????????????? | | ! #??????????????????????????????????????? | | #???????#??????????????????????????????? | | #???????# #######??????????????????????? | | ! #???????? ??????????????????????? | | ! #?????????? ###????????????????????? | | #???????????? Y ""#????????????????????? | | * ]#????????????##@Y"#????????????????????? | | #????????????#Y ""#????????????????????? | | ! [ #????????????## ###????????????????????? | | #?????????????# #??????????????????????? | | ! #?????????????# #??????????????????????? | | #?????????????# #??????????????????????? | | ####+###+##????########## #??????????????????????? | | ### #?????# # #??????????????????????? | | #?????# " # #??????????????????????? | | #?????# T # #??????????????????????? | | """" #?????# " # #??????????????????????? | | """""" #?????# + ##############?????????? | | """"" #?????# """"" # # #?????????? | | """"" #?????# """"" # # "" #?????????? | | #?????# """"" # + """ """ T" #?????????? | | #?????# # # """ """ "" #?????????? | | ############+### # """ """ #?????????? | | # """ """ #?????????? | | + """ """ #?????????? | | # #?????????? | | ##" "#####"Y"#"Y"########## #?????????? | | ?#"Y"#???#"""#"""#????????# #?????????? | | ?#"""#???#########????????# #?????????? | | ?#####????????????????????? #?????????? | | ???????????????????????????#############?????????? | +----------------------------------------------------+ Best States ------------- Heat Dissipation 25 Energy Generation 10 Energy Capacity 250 Matter Stores 300 Matter Capacity 300 Sight Range 16 Terrain Scan Density 10 Armor Coverage 100 Evasion (%) 55 Recoil Reduction 1 Item Schematics ----------------- None Robot Schematics ------------------ None Fabricated ------------ Nothing Repaired ---------- Nothing Studied --------- None Alien Tech Used ----------------- None Achievements -------------- Factory Defaults True Hacker Challenges ------------ None Game ------ Seed GravityRagnarokBiocell Manual? 0 Play Time 00:13:14 Cumulative 26.1 hours Start 2026.01.19 @ 21:18:26 End 2026.01.19 @ 21:31:31 Sessions 1 Manual Loads 0 Difficulty Rogue Special Mode None Game No. 67 Rogue 67 Adventurer 0 Explorer 0 Win Type - Total 0 Types 0/0/0/0/0/0/0/0/0/0 Lore% 18 Gallery% 24 Achievement% 18 Wizard Run 0 Options --------- Layout 0 ASCII 0 Keyboard 0 Movement Arrows Keybinds 0 Fullscreen 1 Font 18/SmallcapsGlow Map View 76x50 Zoom Use 0% Tactical HUD 1 Map Filters NONE Filters NONE Steam 1 RUN: 5b5ad0ec-a084-4cfc-83b5-d78e417dfff7